Cogmind - Beta 10.2 @@@ ROGUE MODE // 2021.05.29 @ 17:50:11 Player: sentrybuster Result: Destroyed by P-80 Master with Gamma Rifle Performance ------------- Evolutions (7) 3500 Regions Visited (13) 2600 Robots Destroyed (274) 1370 Value Destroyed (10415) 10415 Prototype IDs (7) 140 Alien Tech Used (0) 0 Bonus (1701) 1701 TOTAL SCORE: 19726 Bonus ------- High Alert Combat Kills 1201 Scanned by Researcher 500 Cogmind --------- Core Integrity 0/1300 Matter 34/300 Energy 100/100 System Corruption 8% Temperature Cool (0) Movement Core (50) Location -3/Testing Parts ------- > --- POWER (1) -------- (None) > --- PROPULSION (6) --- (None) > --- UTILITY (10) ----- Improved Target Analyzer > --- WEAPON (4) ------- (None) > --- INVENTORY (4) ---- Light Particle Reactor Matter Compressor (0) Long-range Proton Cannon Fusion Bomb Launcher Peak State ------------ > --- POWER ------------ Neutrino Core > --- PROPULSION ------- Flexi-carbon Leg Flexi-carbon Leg Flexi-carbon Leg Myomer Leg Myomer Leg > --- UTILITY ---------- Advanced Heat Sink Large Storage Unit Enhanced Optical Array Makeshift Salvage Targeting Computer Improved Targeting Computer Improved Target Analyzer Layered Heavy Armor Plating Advanced Shield Generator > --- WEAPON ----------- Gauss Cannon Tri-rail Accelerator Hardcell Cannon > --- INVENTORY -------- Antimatter Reactor Medium Treads Heavy Treads Advanced Medium Treads Matter Compressor Layered Heavy Armor Plating Railgun Heavy Gauss Cannon [Rating: 105] Favorites ----------- Power Light Nuclear Core Engine Ion Engine Power Core Light Nuclear Core Reactor Cold Fusion Reactor Propulsion Flexi-carbon Leg Treads Light Treads Leg Flexi-carbon Leg Wheel Compact Wheel Hover Unit Antigrav System Utility Improved Targeting Computer Device Structural Scanner Storage Large Storage Unit Processor Improved Targeting Computer Protection Layered Heavy Armor Plating Weapon Flak Gun Energy Gun Quantum Rifle Energy Cannon Long-range Proton Cannon Ballistic Gun Flak Gun Ballistic Cannon Gauss Cannon Launcher Fusion Bomb Launcher Impact Weapon Maul Slashing Weapon Scythe Build | -11 -10 -9 -8 -7 -7 -7 -6 -5 -5 -5 -4 -3 -3 ------- Run | Scr Mat Mat Mat Fac Was Fac Fac Fac Upp Upp Fac Res Tes Slots Evolved 14 | . . 2 2 2 . . 2 2 . . 2 2 . Power . | . . . . . . . . . . . . . . Propulsion 4 | . . . 1 1 . . . . . . 1 1 . Utility 8 | . . 2 1 1 . . . 2 . . 1 1 . Weapon 2 | . . . . . . . 2 . . . . . . Parts Attached 215 | 6 3 33 17 11 . 14 26 43 8 4 25 23 2 Power 19 | 1 . 4 2 2 . 1 1 2 1 . 1 4 . Engine 5 | 1 . 4 . . . . . . . . . . . Core 8 | . . . 2 2 . 1 . 2 1 . . . . Reactor 6 | . . . . . . . 1 . . . 1 4 . Propulsion 68 | 2 1 6 7 2 . 6 6 18 3 . 8 9 . Treads 14 | . . 4 4 . . . . 1 1 . . 4 . Leg 45 | 2 1 2 3 2 . 6 6 8 2 . 8 5 . Wheel 8 | . . . . . . . . 8 . . . . . Hover 1 | . . . . . . . . 1 . . . . . Flight . | . . . . . . . . . . . . . . Utility 64 | 1 2 14 2 5 . 3 9 12 3 2 9 2 . Device 30 | . . 7 . 2 . 1 6 7 1 2 4 . . Storage 8 | 1 1 4 . . . 1 . 1 . . . . . Processor 12 | . 1 3 2 1 . . . 2 1 . 2 . . Hackware . | . . . . . . . . . . . . . . Protection 14 | . . . . 2 . 1 3 2 1 . 3 2 . Artifact . | . . . . . . . . . . . . . . Weapon 64 | 2 . 9 6 2 . 4 10 11 1 2 7 8 2 Energy Gun 2 | . . . . . . . . . . . . 1 1 Energy Cannon 5 | . . . . . . . . . . . . 5 . Ballistic Gun 34 | 2 . 6 2 2 . 2 8 8 1 . 1 2 . Ballistic Cannon 18 | . . 2 3 . . 1 1 3 . 2 6 . . Launcher 1 | . . . . . . . . . . . . . 1 Special Weapon . | . . . . . . . . . . . . . . Impact Weapon 2 | . . 1 1 . . . . . . . . . . Slashing Weapon 2 | . . . . . . 1 1 . . . . . . Piercing Weapon . | . . . . . . . . . . . . . . Special Melee Weapon . | . . . . . . . . . . . . . . Unidentified Prototypes 7 | . . 2 . . . . 2 . . . 1 . 2 Parts Lost 105 | . . 8 3 4 . 4 13 25 9 . 22 14 3 Power 13 | . . 2 2 1 . 1 . 1 1 . 2 3 . Propulsion 39 | . . 2 . 1 . 2 5 10 4 . 8 6 1 Utility 26 | . . 1 . . . . 4 7 2 . 8 2 2 Weapon 27 | . . 3 1 2 . 1 4 7 2 . 4 3 . Highest Loss Streak 9 | . . 2 2 2 . 2 6 7 6 . 9 8 1 Average Slot Usage (%) 83 | . 96 93 99 92 100 96 89 77 65 70 80 27 22 Engine 1 | . 14 9 1 . . . . . . . . . . Core 3 | . . . 7 5 7 6 2 3 4 5 3 . . Reactor 1 | . . . . . . . 3 1 . . 1 2 2 Treads 2 | . . 7 13 . . . . . 3 5 . 6 7 Leg 17 | . 28 12 13 25 30 28 24 11 3 5 21 2 . Device 4 | . . 2 . 3 7 5 1 8 6 5 10 . . Storage 7 | . 14 14 9 7 7 7 6 5 5 5 5 1 . Processor 20 | . 10 23 35 26 23 23 20 15 18 23 18 9 4 Protection 3 | . . . . 5 7 7 4 3 4 5 4 . 2 Ballistic Gun 11 | . 28 14 9 10 15 14 20 12 9 . 1 . . Ballistic Cannon 4 | . . 4 8 3 . . . 4 . 11 11 . . Naked Turns . | . . . . . . . . . . . . . . Heaviest Build 92 | 11 15 22 21 32 31 43 63 75 68 66 92 43 46 Greatest Support 115 | 20 20 40 60 72 71 73 75 75 36 30 115 100 54 Greatest Overweight (x) 12 | 3 . 2 1 . . . 12 3 4 2 4 2 1 Average Overweight (x) . | . . . . . . . . 1 1 2 . . . Largest Inventory Capacity 10 | 6 8 8 8 8 8 10 10 10 10 10 10 10 4 Average Capacity 9 | 5 7 8 8 8 8 9 10 10 10 10 10 6 4 Most Carried 10 | 6 8 8 8 8 8 10 10 10 10 6 10 8 4 Average Carried 7 | 2 7 6 7 7 8 9 9 8 6 5 8 3 2 Final Capacity 10 | 6 8 8 8 8 8 10 10 10 10 10 10 4 4 Final Carried 10 | 6 8 7 8 8 8 10 8 10 7 5 8 2 4 Class Distribution -------------------- 49% | Mutant 23% | Scavenger-Mutant 13% | Scavenger-Gunner 7% | Gunner Dominant Class ---------------- Mutant | -10/Materials Mutant | -9/Materials Mutant | -8/Materials Mutant | -7/Factory Mutant | -7/Waste Mutant | -7/Factory Gunner | -6/Factory Scavenger-Gunner | -5/Factory Mutant | -5/Upper Caves Mutant | -5/Upper Caves Scavenger-Mutant | -4/Factory Mutant | -3/Research Mutant | -3/Testing Resources | -11 -10 -9 -8 -7 -7 -7 -6 -5 -5 -5 -4 -3 -3 ----------- Run | Scr Mat Mat Mat Fac Was Fac Fac Fac Upp Upp Fac Res Tes Matter Collected 10352 | 208 441 917 815 432 . 669 1310 2356 375 39 2759 31 . Remotely 715 | . . 114 . . . . 60 . 10 39 492 . . Salvage Created 12071 | 109 388 1143 1112 592 . 943 2087 2435 438 39 2660 125 . Parts 588 | 6 29 68 60 27 . 50 90 117 17 2 115 7 . Haulers Intercepted 6 | . 2 1 . . . . 1 . . . 2 . . Recyclers Shooed 20 | . 3 1 2 2 . 2 4 4 . . 2 . . Parts Field Recycled . | . . . . . . . . . . . . . . Retrieved Matter . | . . . . . . . . . . . . . . Parts Self-Destructed 17 | . . . . . . . . . 15 2 . . . Prevented . | . . . . . . . . . . . . . . Kills | -11 -10 -9 -8 -7 -7 -7 -6 -5 -5 -5 -4 -3 -3 ------- Run | Scr Mat Mat Mat Fac Was Fac Fac Fac Upp Upp Fac Res Tes Combat Hostiles Destroyed 187 | . 6 23 21 11 . 19 22 30 8 1 42 4 . Melee 5 | . . 2 . . . 2 1 . . . . . . Guns 85 | . 6 9 6 7 . 14 16 16 8 . 2 1 . Cannons 88 | . . 9 15 4 . 3 4 14 . 1 35 3 . AOE 6 | . . . . . . . 1 . . . 5 . . Classes Destroyed 14 | 2 5 2 2 1 . 1 1 . . . . . . Worker 17 | . 2 . . 1 . 3 2 5 . . 4 . . Builder 8 | . . . . . . 1 . 3 . . 4 . . Tunneler 6 | 2 . . . . . 1 1 1 . . 1 . . Hauler 6 | . 2 1 . . . . 1 . . . 2 . . Recycler 34 | 1 2 6 3 3 . 1 6 7 . . 5 . . Mechanic 3 | . . . . . . . 1 1 . . 1 . . Operator 4 | . 1 1 . . . . 1 . . . 1 . . Watcher 9 | . . 2 3 . . 1 2 1 . . . . . Swarmer 47 | . 5 9 . 4 . 8 3 8 4 . 2 4 . Grunt 69 | . 1 9 10 6 . 4 9 8 4 . 18 . . Brawler 3 | . . . 1 . . . 1 . . . 1 . . Sentry 28 | . . 5 9 . . 3 3 3 . . 5 . . Hunter 12 | . . . 1 . . 1 3 2 . . 5 . . Programmer 28 | . . . . 1 . 3 3 9 . 1 11 . . Best Kill Streak 10 | 3 7 4 4 3 . 6 10 4 4 1 7 3 . Combat Bots Only 6 | . 4 4 2 3 . 4 6 3 4 1 4 3 . Max Kills in Single Turn 5 | 1 1 1 1 1 . 2 4 1 1 1 5 1 . Gunslinging . | . . . . . . . . . . . . . . Exploded 4 | . . . . . . . 1 . . . 4 . . Melee 1 | . . 1 . . . 1 1 . . . . . . Uniques/NPCs Destroyed . | . . . . . . . . . . . . . . Combat | -11 -10 -9 -8 -7 -7 -7 -6 -5 -5 -5 -4 -3 -3 -------- Run | Scr Mat Mat Mat Fac Was Fac Fac Fac Upp Upp Fac Res Tes Damage Taken 21559 | . 277 1367 1109 597 . 1210 2679 3880 951 76 4964 3713 736 Core 2992 | . 26 234 121 71 . 65 256 396 52 . 459 1114 198 Absorbed by Shields 1010 | . . . . . . . . 222 . . 788 . . Core Remaining (%) 71 | 100 89 41 78 . . 80 69 . . 55 60 . . Volleys Fired 798 | 4 49 95 87 47 . 72 90 125 25 5 168 30 1 Largest 4 | 2 2 2 2 2 . 2 4 4 3 2 3 1 1 Hottest 173 | 40 40 59 69 69 . 76 111 162 98 101 173 94 52 Shots Fired 1692 | 8 98 174 158 83 . 139 267 315 62 10 347 30 1 Gun 1056 | 8 98 126 71 53 . 126 252 209 62 . 41 10 . Cannon 635 | . . 48 87 30 . 13 15 106 . 10 306 20 . Launcher 1 | . . . . . . . . . . . . . 1 Special . | . . . . . . . . . . . . . . Kinetic 1669 | 8 98 174 158 83 . 139 267 315 62 10 347 8 . Thermal 18 | . . . . . . . . . . . . 18 . Explosive 1 | . . . . . . . . . . . . . 1 Electromagnetic 4 | . . . . . . . . . . . . 4 . Robot Hit Streak 39 | 3 7 19 39 10 . 13 14 9 5 2 13 4 2 Robot Miss Streak 10 | 2 5 4 7 3 . 3 10 10 5 2 5 5 . Penetration Max 1 | . . . . . . 1 . 1 . . 1 . . Secondary Targets 12 | . 2 1 . . . 2 2 2 3 . . . . Max Gunslinging Chain 1 | . 1 1 . . . 1 1 1 1 . . . . Shots Hit Robots 1135 | 5 55 130 131 53 . 99 184 203 33 5 219 17 1 Core Hits 602 | 4 20 43 57 26 . 38 101 170 19 2 113 8 1 Critical Hits 69 | . 1 2 2 2 . 5 10 15 10 . 19 3 . Critical Kills 23 | . . 1 1 1 . 1 5 5 2 . 7 . . Critical Parts Destroyed 42 | . . 1 1 1 . 4 4 9 7 . 12 3 . Melee Attacks 56 | . . 27 1 . . 12 7 9 . . . . . Impact 28 | . . 27 1 . . . . . . . . . . Slashing 28 | . . . . . . 12 7 9 . . . . . Piercing . | . . . . . . . . . . . . . . Sneak Attacks 3 | . . . . . . . . 3 . . . . . Combat Hostiles . | . . . . . . . . . . . . . . Follow-up Attacks . | . . . . . . . . . . . . . . Damage Inflicted 28395 | 79 614 1983 2359 1179 . 2201 4488 4892 643 107 9152 641 57 Guns 12362 | 79 614 967 1045 723 . 1818 3276 2389 643 . 702 106 . Cannons 12480 | . . 614 1311 450 . 223 275 2018 . 107 6959 523 . Explosions 2267 | . . . . . . . 745 . . . 1465 . 57 Melee 1236 | . . 402 . . . 160 192 482 . . . . . Ramming 50 | . . . 3 6 . . . 3 . . 26 12 . Kinetic 24319 | 79 614 1581 2356 1173 . 2041 3551 4407 643 107 7661 106 . Thermal 1614 | . . . . . . . 745 . . . 453 416 . Explosive 1069 | . . . . . . . . . . . 1012 . 57 Electromagnetic 107 | . . . . . . . . . . . . 107 . Impact 402 | . . 402 . . . . . . . . . . . Slashing 834 | . . . . . . 160 192 482 . . . . . Piercing . | . . . . . . . . . . . . . . Highest Corruption 12 | . . 5 . 1 1 2 1 8 8 9 12 1 8 Average Corruption 4 | . . 5 . 1 1 1 1 6 8 8 8 1 3 Corruption Purged . | . . . . . . . . . . . . . . Effects 226 | . . 6 . 2 . 5 13 74 31 6 83 1 5 Message Errors 50 | . . 1 . . . 2 7 14 10 1 14 . 1 Matter Fused 33 | . . 2 . . . . . 10 8 1 12 . . Heat Flow Errors 16 | . . 1 . . . 1 . 7 2 1 4 . . Energy Discharges 22 | . . . . . . . 1 8 4 1 7 . 1 Parts Rejected 5 | . . . . . . . . 2 . . 2 . 1 Data Loss (minor) 18 | . . . . 1 . 1 . 7 2 2 4 . 1 Data Loss (major) 2 | . . . . . . . . . . . 2 . . Misfires 9 | . . 1 . . . . . 2 . . 6 . . Misdirections 4 | . . . . . . . . . . . 4 . . Targeting Errors 56 | . . 1 . . . 1 5 20 5 . 22 1 1 Weapon Failures 11 | . . . . 1 . . . 4 . . 6 . . Overload Shots . | . . . . . . . . . . . . . . Overflow Damage 734 | . . 55 8 . . . 251 79 . . 315 26 . Projectiles 176 | . . 3 8 . . . 1 13 . . 125 26 . Explosions 440 | . . . . . . . 250 . . . 190 . . Melee 118 | . . 52 . . . . . 66 . . . . . Knockbacks 123 | . . 9 15 7 . 2 2 32 . 2 54 . . Impact 4 | . . 3 . . . . . . . . 1 . . Kinetic 113 | . . 5 14 6 . 2 2 32 . 2 50 . . Secondary 6 | . . 1 1 1 . . . . . . 3 . . Self-Inflicted Damage 228 | . . . . . . . 22 1 . . 161 . 44 Shots 5 | . . . . . . . 1 . . . 3 . 1 Rammed 8 | . . . . . . . . 1 . . 1 6 . Targets Rammed 13 | . . . 1 1 . . . 1 . . 4 6 . Kicked 5 | . . . 1 1 . . . . . . 3 . . Crushed . | . . . . . . . . . . . . . . Highest Temperature 599 | . . 84 78 22 . 147 155 234 286 254 599 123 . Average Temperature 67 | . . 12 16 8 . 16 32 47 125 110 136 42 . Received Heat Transfer 3061 | . 12 351 477 126 . 189 570 471 204 . 643 9 9 Effects 10 | . . . . . . . . . 1 . 9 . . Shutdowns 1 | . . . . . . . . . . . 1 . . Energy Bleed 2 | . . . . . . . . . 1 . 1 . . Interference 5 | . . . . . . . . . . . 5 . . Short Circuit 1 | . . . . . . . . . . . 1 . . Damage (major) 1 | . . . . . . . . . . . 1 . . Siege Activations . | . . . . . . . . . . . . . . Robots Corrupted . | . . . . . . . . . . . . . . Combat Hostiles . | . . . . . . . . . . . . . . Parts Fried 3 | . . 3 . . . . . . . . . . . Impact Corruptions 6 | . . 6 . . . . . . . . . . . Robots Melted . | . . . . . . . . . . . . . . Combat Hostiles . | . . . . . . . . . . . . . . Parts Melted . | . . . . . . . . . . . . . . Heat Transferred 1125 | . . . . . . . 500 . . . 350 275 . Parts Sabotaged . | . . . . . . . . . . . . . . Parts Stolen . | . . . . . . . . . . . . . . Parts Stripped . | . . . . . . . . . . . . . . Power Chain Reactions . | . . . . . . . . . . . . . . Missiles Intercepted . | . . . . . . . . . . . . . . Alert | -11 -10 -9 -8 -7 -7 -7 -6 -5 -5 -5 -4 -3 -3 ------- Run | Scr Mat Mat Mat Fac Was Fac Fac Fac Upp Upp Fac Res Tes Peak Influence 1183 | 15 257 365 619 348 107 339 727 526 . . 1183 693 350 Initial 575 | . 9 31 154 144 92 74 124 315 . . 38 575 288 Average 325 | 3 142 246 387 226 104 175 292 400 . . 450 563 303 Maximum Alert Level 4 | . 1 1 2 1 . 1 3 2 . . 4 2 1 Low Security (%) 27 | 100 58 27 20 31 100 48 25 . . . 36 . . Level 1 47 | . 41 72 34 68 . 51 57 53 . . 25 . 100 Level 2 20 | . . . 44 . . . 12 46 . . 9 100 . Level 3 4 | . . . . . . . 4 . . . 22 . . Level 4 1 | . . . . . . . . . . . 5 . . Level 5 . | . . . . . . . . . . . . . . High Security . | . . . . . . . . . . . . . . Max Security . | . . . . . . . . . . . . . . Squads Dispatched 55 | . 1 5 4 3 . 3 7 14 . . 16 1 1 Investigation 7 | . . 3 1 . . 2 . 1 . . . . . Extermination 11 | . . . . 1 . 1 1 3 . . 5 . . Reinforcement 21 | . 1 2 2 2 . . 3 3 . . 6 1 1 Assault 5 | . . . 1 . . . 2 . . . 2 . . Garrison 11 | . . . . . . . 1 7 . . 3 . . Intercept . | . . . . . . . . . . . . . . Construction Impeded 8 | . . . . . . . 2 1 . . 4 1 . Haulers Reinforced 2 | . . . . . . . 1 . . . 1 . . Stealth | -11 -10 -9 -8 -7 -7 -7 -6 -5 -5 -5 -4 -3 -3 --------- Run | Scr Mat Mat Mat Fac Was Fac Fac Fac Upp Upp Fac Res Tes Distress Signals 22 | . 1 3 5 1 . 1 . 7 . . 3 . 1 Communications Jammed . | . . . . . . . . . . . . . . Distress Signals . | . . . . . . . . . . . . . . Times Spotted 314 | . 13 39 39 20 3 24 30 50 9 1 63 15 8 Peak Tracking Total 9 | . 7 6 5 5 3 4 5 8 4 1 9 9 7 Tactical Retreats 30 | . 1 7 1 1 . 3 4 3 1 . 4 4 1 Traps | -11 -10 -9 -8 -7 -7 -7 -6 -5 -5 -5 -4 -3 -3 ------- Run | Scr Mat Mat Mat Fac Was Fac Fac Fac Upp Upp Fac Res Tes Traps Triggered 12 | . . 1 . 1 . 1 2 4 . . 1 2 . Indirectly . | . . . . . . . . . . . . . . Trap Hack Attempts . | . . . . . . . . . . . . . . Triggered . | . . . . . . . . . . . . . . Disarmed . | . . . . . . . . . . . . . . Reprogrammed . | . . . . . . . . . . . . . . Reused . | . . . . . . . . . . . . . . Traps Extracted . | . . . . . . . . . . . . . . Installed . | . . . . . . . . . . . . . . Triggered . | . . . . . . . . . . . . . . Machines | -11 -10 -9 -8 -7 -7 -7 -6 -5 -5 -5 -4 -3 -3 ---------- Run | Scr Mat Mat Mat Fac Was Fac Fac Fac Upp Upp Fac Res Tes Machines Disabled 43 | . . . 3 1 . . 12 4 . . 20 1 2 Max in Single Turn 9 | . . . 1 1 . . 9 1 . . 5 1 2 Garrison Access 3 | . . . 1 . . . 1 . . . 1 . . Machines Sabotaged . | . . . . . . . . . . . . . . Garrisons Compromised . | . . . . . . . . . . . . . . Overloaded Fab Kills . | . . . . . . . . . . . . . . Fab Network Shutdowns . | . . . . . . . . . . . . . . Hacking | -11 -10 -9 -8 -7 -7 -7 -6 -5 -5 -5 -4 -3 -3 --------- Run | Scr Mat Mat Mat Fac Was Fac Fac Fac Upp Upp Fac Res Tes Machines Accessed 50 | . 4 7 6 4 . 11 2 6 . . 8 2 . Terminals 32 | . 2 5 3 2 . 7 2 3 . . 6 2 . Fabricators 2 | . . . . . . 1 . 1 . . . . . Repair Stations 3 | . . . 1 . . 1 . . . . 1 . . Recycling Units 11 | . 2 2 1 2 . 2 . 2 . . . . . Scanalyzers . | . . . . . . . . . . . . . . Garrison Access 2 | . . . 1 . . . . . . . 1 . . Total Hacks 119 | . 8 16 14 7 . 26 8 16 . . 18 6 . Successful 57 | . 6 8 8 3 . 6 4 8 . . 11 3 . Failed 62 | . 2 8 6 4 . 20 4 8 . . 7 3 . Catastrophic 7 | . . 1 1 . . 4 . 1 . . . . . Database Lockouts . | . . . . . . . . . . . . . . Manual 60 | . 5 9 6 2 . 13 8 9 . . 6 2 . Terminals 85 | . 4 12 8 4 . 16 8 12 . . 15 6 . Fabricators 4 | . . . . . . 3 . 1 . . . . . Repair Stations 6 | . . . 2 . . 2 . . . . 2 . . Recycling Units 20 | . 4 4 1 3 . 5 . 3 . . . . . Scanalyzers . | . . . . . . . . . . . . . . Garrison Access 4 | . . . 3 . . . . . . . 1 . . Terminal Hacks 22 | . . 3 5 1 . 1 1 3 . . 6 2 . Terminal Index 4 | . . . . . . 1 1 . . . 1 1 . Alert Level 8 | . . 2 2 1 . . . 1 . . 2 . . Unreport Threat 5 | . . . 2 . . . . 1 . . 2 . . Locate Traps 3 | . . 1 . . . . . . . . 1 1 . Hauler Manifests 1 | . . . 1 . . . . . . . . . . Zone Layout 1 | . . . . . . . . 1 . . . . . Fabricator Hacks 1 | . . . . . . . . 1 . . . . . Build 1 | . . . . . . . . 1 . . . . . Repair Station Hacks 2 | . . . 2 . . . . . . . . . . Scan Component 1 | . . . 1 . . . . . . . . . . Repair 1 | . . . 1 . . . . . . . . . . Recycling Unit Hacks 9 | . 3 2 1 2 . . . 1 . . . . . Retrieve Components 9 | . 3 2 1 2 . . . 1 . . . . . Scanalyzer . | . . . . . . . . . . . . . . Garrison Access Hacks 1 | . . . . . . . . . . . 1 . . Seal Access 1 | . . . . . . . . . . . 1 . . Unauthorized Hacks 22 | . 3 3 . . . 5 3 3 . . 4 1 . Terminals 20 | . 2 2 . . . 5 3 3 . . 4 1 . Track 16 | . 2 2 . . . 4 2 2 . . 3 1 . Botnet 4 | . . . . . . 1 1 1 . . 1 . . Fabricators . | . . . . . . . . . . . . . . Repair Stations . | . . . . . . . . . . . . . . Recycling Units 2 | . 1 1 . . . . . . . . . . . Recyclers 2 | . 1 1 . . . . . . . . . . . Scanalyzers . | . . . . . . . . . . . . . . Garrison Access . | . . . . . . . . . . . . . . Data Cores Recovered 1 | . . . . . . . 1 . . . . . . Used 1 | . . . . . . . 1 . . . . . . Hacking Detections 44 | . 2 6 4 4 . 11 2 6 . . 7 2 . Full Trace Events 6 | . . 2 1 . . 2 . 1 . . . . . Feedback Events . | . . . . . . . . . . . . . . Feedback Blocked . | . . . . . . . . . . . . . . Robot Schematics Acquired . | . . . . . . . . . . . . . . Robots Built . | . . . . . . . . . . . . . . Matter . | . . . . . . . . . . . . . . Time . | . . . . . . . . . . . . . . Total Robot Build Rating . | . . . . . . . . . . . . . . Part Schematics Acquired . | . . . . . . . . . . . . . . Parts Built 2 | . . . . . . . . 2 . . . . . Matter 212 | . . . . . . . . 212 . . . . . Time 53 | . . . . . . . . 53 . . . . . Total Part Build Rating 12 | . . . . . . . . 12 . . . . . Parts Repaired 1 | . . . 1 . . . . . . . . . . Time 32 | . . . 32 . . . . . . . . . . Parts Recycled . | . . . . . . . . . . . . . . Recycled Matter . | . . . . . . . . . . . . . . Retrieved Matter . | . . . . . . . . . . . . . . Retrieved Components 21 | . 2 6 10 1 . . . 2 . . . . . Parts Scanalyzed . | . . . . . . . . . . . . . . Part Schematics Acquired . | . . . . . . . . . . . . . . Parts Damaged . | . . . . . . . . . . . . . . Bothacking | -11 -10 -9 -8 -7 -7 -7 -6 -5 -5 -5 -4 -3 -3 ------------ Run | Scr Mat Mat Mat Fac Was Fac Fac Fac Upp Upp Fac Res Tes Used RIF Installer . | . . . . . . . . . . . . . . Robots Hacked . | . . . . . . . . . . . . . . Non-combat . | . . . . . . . . . . . . . . Combat . | . . . . . . . . . . . . . . Robot Hacks Applied . | . . . . . . . . . . . . . . Relay Couplers Released 6 | . . . 3 . . . 3 . . . . . . Machine Destruction 6 | . . . 3 . . . 3 . . . . . . Robots Rewired . | . . . . . . . . . . . . . . Allies Hacked . | . . . . . . . . . . . . . . Hacks Repelled . | . . . . . . . . . . . . . . Allies | -11 -10 -9 -8 -7 -7 -7 -6 -5 -5 -5 -4 -3 -3 -------- Run | Scr Mat Mat Mat Fac Was Fac Fac Fac Upp Upp Fac Res Tes Total Allies . | . . . . . . . . . . . . . . Largest Group . | . . . . . . . . . . . . . . Highest-Rated Group . | . . . . . . . . . . . . . . Highest-Rated Ally . | . . . . . . . . . . . . . . Total Orders 3 | . . . . . . . . 3 . . . . . EXPLORE 3 | . . . . . . . . 3 . . . . . Ally Attacks . | . . . . . . . . . . . . . . Total Damage . | . . . . . . . . . . . . . . Kills . | . . . . . . . . . . . . . . Allies Corrupted . | . . . . . . . . . . . . . . Allies Melted . | . . . . . . . . . . . . . . Intel | -11 -10 -9 -8 -7 -7 -7 -6 -5 -5 -5 -4 -3 -3 ------- Run | Scr Mat Mat Mat Fac Was Fac Fac Fac Upp Upp Fac Res Tes Robot Analysis Total . | . . . . . . . . . . . . . . Derelict Logs Recovered 1 | . . . . . . . . . 1 . . . . Drone Launches 3 | . . . . . . . . 3 . . . . . Drone Recoveries 2 | . . . . . . . . 2 . . . . . Exploration | -11 -10 -9 -8 -7 -7 -7 -6 -5 -5 -5 -4 -3 -3 ------------- Run | Scr Mat Mat Mat Fac Was Fac Fac Fac Upp Upp Fac Res Tes Turns Passed 14245 | 85 640 1567 1253 736 159 1625 1782 2377 839 146 2307 562 167 Spaces Moved 8173 | 47 375 657 660 476 129 1049 1139 1388 466 64 1112 487 124 Core 359 | 10 . . . . . . 2 . . . . 289 58 Treads 1230 | . . 301 256 . . . . . 262 64 84 197 66 Legs 5790 | 37 375 356 404 476 129 1049 1137 781 17 . 1028 1 . Wheels 794 | . . . . . . . . 607 187 . . . . Hover . | . . . . . . . . . . . . . . Flight . | . . . . . . . . . . . . . . Fastest Speed 50 | 50 120 120 120 120 122 122 120 95 96 200 120 50 50 Average Speed 127 | 118 120 143 135 120 122 124 122 125 159 200 131 93 114 Slowest Speed 650 | 200 120 180 160 122 122 125 650 210 240 200 240 170 170 Overloaded Moves . | . . . . . . . . . . . . . . Propulsion Burnouts . | . . . . . . . . . . . . . . Robots Hopped . | . . . . . . . . . . . . . . Cave-ins Triggered . | . . . . . . . . . . . . . . Exploration Rate (%) 35 | 4 45 58 54 16 84 30 31 38 62 16 29 18 15 Regions Visited 13 Branch Regions 3 Pre-discovered Areas . | . . . . . . . . . . . . . . Known Exits Taken 1 | . . . . . . . . . 1 . . . . Unknown Exits Taken 10 | 1 1 1 1 . . 1 1 1 . 1 1 1 . Scrap Searched 1 | . . . . . . . . . 1 . . . . Spaces Dug 18 | . . 3 . . . 6 1 2 . . 6 . . Terrain Destroyed 355 | . . 6 10 1 . 11 65 17 5 5 218 2 15 Melee 7 | . . 3 . . . 4 . . . . . . . Projectile 173 | . . 3 10 1 . 7 1 17 5 5 122 2 . AOE 175 | . . . . . . . 64 . . . 96 . 15 Terrain Rammed . | . . . . . . . . . . . . . . Walls Destroyed . | . . . . . . . . . . . . . . Machines Disabled . | . . . . . . . . . . . . . . Actions | -11 -10 -9 -8 -7 -7 -7 -6 -5 -5 -5 -4 -3 -3 --------- Run | Scr Mat Mat Mat Fac Was Fac Fac Fac Upp Upp Fac Res Tes Total 10374 | 65 468 1058 858 556 130 1222 1326 1756 512 73 1646 556 148 Wait 942 | 3 32 218 70 14 2 59 48 166 11 . 309 1 9 Move 8161 | 46 374 656 659 476 128 1048 1138 1387 465 63 1111 486 124 Hop . | . . . . . . . . . . . . . . Pick Up 70 | 6 5 10 8 4 . 6 6 8 . . 14 3 . Fast Attach 127 | 6 2 11 11 5 . 8 17 33 3 . 18 11 2 Attach 61 | . . 12 2 4 . 2 5 9 5 3 7 12 . Detach 36 | . . 8 1 1 . 1 1 8 3 1 4 6 2 Swap 28 | . 1 10 4 2 . 4 4 1 . 1 . . 1 Drop 74 | . 5 11 14 2 . 10 10 9 . . 11 1 1 Fire 798 | 4 49 95 87 47 . 72 90 125 25 5 168 30 1 Melee 56 | . . 27 1 . . 12 7 9 . . . . . Ram 2 | . . . . . . . . 1 . . . 1 . Kick 6 | . . . 1 1 . . . . . . 4 . . Crush 5 | . . . . . . . . . . . . 5 . Escape Stasis 8 | . . . . . . . . . . . . . 8 Rewire . | . . . . . . . . . . . . . . Trap . | . . . . . . . . . . . . . . Miscellaneous . | . . . . . . . . . . . . . . Route ------- -11/Scrapyard -10/Materials (discovered 2 exits: *Mat / [*Min]) -9/Materials (discovered 2 exits: *Mat x2) -8/Materials (discovered 2 exits: *Fac x2) -7/Factory -7/Waste -7/Factory (discovered 3 exits: *Fac x2 / [*Sto]) -6/Factory -5/Factory (discovered 2 exits: *Fac / [*Upp]) -5/Upper Caves -5/Upper Caves -4/Factory (discovered 2 exits: *Res / *Ext) -3/Research (discovered 2 exits: [*Res] / [*Tes]) -3/Testing History --------- Turn | Location | Event 16 | -11/Scrapyard | Discovered new exit (range 16) 86 | -11/Scrapyard | Entered Materials 225 | -10/Materials | Discovered new exit (range 15) 312 | -10/Materials | Build established: Mutant 350 | -10/Materials | Discovered new exit (range 16) 726 | -10/Materials | Entered another Materials area 726 | -9/Materials | Evolved 2 slots: Utility x2 1259 | -9/Materials | Discovered new exit (range 9) 1586 | -9/Materials | Core integrity fell below 50% 1827 | -9/Materials | Discovered new exit (range 4) 2293 | -9/Materials | Entered another Materials area 2293 | -8/Materials | Evolved 2 slots: Propulsion x1, Utility x1 2533 | -8/Materials | Build established: Scavenger-Mutant 2871 | -8/Materials | Discovered new exit (range 18) 3127 | -8/Materials | Repaired Hpw. Tractor Beam 3205 | -8/Materials | Build established: Mutant 3524 | -8/Materials | Discovered new exit (range 5) 3546 | -8/Materials | Entered Factory 3546 | -7/Factory | Evolved 2 slots: Propulsion x1, Utility x1 3959 | -7/Factory | Discovered new exit (range 17) 4282 | -7/Factory | Sucked down chute 4282 | -7/Factory | Entered Waste 4290 | -7/Waste | Spotted C-40 Crusher 4292 | -7/Waste | Spotted C-40 Crusher 4344 | -7/Waste | Spotted C-40 Crusher 4349 | -7/Waste | Spotted C-40 Crusher 4354 | -7/Waste | Spotted C-40 Crusher 4415 | -7/Waste | Discovered new exit (range 22) 4441 | -7/Waste | Entered Factory 4448 | -7/Factory | Discovered new exit (range 12) 4883 | -7/Factory | Discovered new exit (range 21) 5910 | -7/Factory | Discovered new exit (range 10) 6066 | -7/Factory | Entered another Factory area 6066 | -6/Factory | Evolved 2 slots: Weapon x2 6543 | -6/Factory | Spotted B-75 Beast 6567 | -6/Factory | Discovered new exit (range 5) 6654 | -6/Factory | Found Hvy. Insulated Plating 6822 | -6/Factory | Build established: Gunner 7403 | -6/Factory | Lost 6 parts (4n1u1w) 7541 | -6/Factory | Garrison activated, responded to threat 7612 | -6/Factory | Lost 5 parts (1n2u2w) 7813 | -6/Factory | Found Hvy. Insulated Plating 7816 | -6/Factory | First assault squad dispatched 7848 | -6/Factory | Entered another Factory area 7848 | -5/Factory | Evolved 2 slots: Utility x2 8239 | -5/Factory | Discovered new exit (range 19) 8347 | -5/Factory | Lost 7 parts (3u4w) 8529 | -5/Factory | Discovered new exit (range 16) 8601 | -5/Factory | Fabricated Remote Force Field (x2) 8604 | -5/Factory | Garrison activated, responded to threat 8634 | -5/Factory | Lost 4 parts (1p3n) 8647 | -5/Factory | Build established: Scavenger-Mutant 9054 | -5/Factory | Garrison activated, responded to threat 9157 | -5/Factory | Garrison activated, responded to threat 9349 | -5/Factory | Build established: Scavenger-Gunner 9478 | -5/Factory | Garrison activated, responded to threat 9919 | -5/Factory | Spotted B-75 Beast 10187 | -5/Factory | Garrison activated, responded to threat 10225 | -5/Factory | Entered Upper Caves 10375 | -5/Upper Caves | Lost 6 parts (1p2n2u1w) 10526 | -5/Upper Caves | Lost 3 parts (2n1w) 10632 | -5/Upper Caves | Identified exit to Upper Caves 10659 | -5/Upper Caves | Build established: Mutant 11064 | -5/Upper Caves | Entered another Upper Caves area 11196 | -5/Upper Caves | Discovered new exit (range 4) 11210 | -5/Upper Caves | Entered Factory 11210 | -4/Factory | Evolved 2 slots: Propulsion x1, Utility x1 11816 | -4/Factory | Build established: Scavenger-Mutant 12034 | -4/Factory | Garrison activated, responded to threat 12136 | -4/Factory | Discovered new exit (range 22) 12663 | -4/Factory | System corruption reached 10% 12845 | -4/Factory | Identified exit to Extension 12882 | -4/Factory | Build established: Scavenger-Gunner 12960 | -4/Factory | First assault squad dispatched 13430 | -4/Factory | Lost 4 parts (1n2u1w) 13513 | -4/Factory | Discovered new exit (range 5) 13517 | -4/Factory | Entered Research 13517 | -3/Research | Evolved 2 slots: Propulsion x1, Utility x1 13540 | -3/Research | Lost 9 parts (1p4n2u2w) 13799 | -3/Research | Build established: Mutant 13809 | -3/Research | Lost 5 parts (1p2n1u1w) 13812 | -3/Research | Core integrity fell below 50% 13934 | -3/Research | Lost 8 parts (2p4n1u1w) 13939 | -3/Research | Core integrity fell below 20% 14065 | -3/Research | Found Fusion Bomb Launcher 14074 | -3/Research | Discovered new exit (range 4) 14076 | -3/Research | Discovered new exit (range 9) 14079 | -3/Research | Entered Testing 14180 | -3/Testing | Scanned by Researcher 14237 | -3/Testing | Spotted Alpha 7 14246 | -3/Testing | Destroyed by P-80 Master with Gamma Rifle Last Messages --------------- 14208_ Dropped Faulty Hvy. Tesla Rifle. 14210_ Reaction Chamber disabled. 14212_ Held in stasis. 14212_ C-55 Analyst is analyzing... 14216_ Held in stasis. 14216_ C-55 Analyst is analyzing... 14217_ System corrupted: Component data lost. 14219_ Critical hit. 14219_ Arm. Medium Treads destroyed. 14235_ System corrupted: Arm. Medium Treads rejected. 14235_ W-44 Eye sends out distress signal. 14239_ Penetrated by Slug. 14239_ Terminal disabled. 14242_ Slug penetrates W-44 Eye. 14242_ Slug penetrates Terminal. 14242_ Slug penetrates Wave Intensifier. 14242_ Slug penetrates Wall. 14245_ Slug penetrates Terminal. 14245_ Penetrated by Slug. 14245_ Slug penetrates Terminal. Map ----- +----------------------------------------------------+ | | | | | | | | | | | | | | | | | ?????????????????????????????????????????????????? | | ?????????????????????????????????????????????????? | | ?????????????????????????????????????????????????? | | ?????????????????????????????????????????????????? | | ???????????????????c ????????????????????????????? | | #######????????????T ???????????????????????????? | | #????????????# ???????????????????????????? | | # ######/7#####??????????????????????? | | ! # """"" # [[[ ??????????????????????? | | # """"" + [[[ #??????????????????????? | | # """"" # [[ #??????????????????????? | | # """"" #? g ##?????????????????????? | | # #??# "#?????????????????????? | | ???? ????# "#?????????????????????? | | #+########+####### ^ "#?????????????????????? | | gg T#?????????????????????? | | """w #?????????????????????? | | """ @"#?????????????????????? | | """ "#?????????????????????? | | ######### """ ;#?????????????????????? | | # """ ##?????????????????????? | | # """"" # """ #??????????????????????? | | """"" + """p #??????????????????????? | | """???# #??????????????????????? | | # ??# g #??????????????????????? | | """"??# #??????????????????????? | | # """"??#####"" ""###??????????????????????? | | # ""????????#""T""#????????????????????????? | | #######? ????????# """ #????????????????????????? | | ???????? ????????#######????????????????????????? | | ?????????????????????????????????????????????????? | | ?????????????????????????????????????????????????? | | ?????????????????????????????????????????????????? | | ?????????????????????????????????????????????????? | | ?????????????????????????????????????????????????? | | ?????????????????????????????????????????????????? | | ?????????????????????????????????????????????????? | | ?????????????????????????????????????????????????? | | ?????????????????????????????????????????????????? | | ?????????????????????????????????????????????????? | | ?????????????????????????????????????????????????? | | ?????????????????????????????????????????????????? | +----------------------------------------------------+ Best States ------------- Heat Dissipation 62 Energy Generation 23 Energy Capacity 325 Matter Stores 403 Matter Capacity 550 Sight Range 22 Robot Scan Range 13 Terrain Scan Range 16 Terrain Scan Density 60 Armor Coverage 600 Resistance: KI 30 Resistance: EM 30 Utility Shielding 66 Phase Shifting 5 Evasion (%) 50 Targeting Accuracy 6 Melee Accuracy 6 Target Analysis 6 Core Analysis 8 Armor Integrity Analysis 33 Recoil Reduction 3 Matter Filtering 30 Kinecelleration 40 Salvage Targeting 4 Item Schematics ----------------- None Robot Schematics ------------------ None Fabricated ------------ Remote Force Field | x2 | -5/Factory | Preloaded Alien Tech Used ----------------- None Achievements -------------- None Challenges ------------ None Game ------ Seed TeslaInsulatedSuite Manual? 0 Play Time 01:36:54 Cumulative 245.9 hours Start 2021.05.29 @ 16:06:55 End 2021.05.29 @ 17:50:11 Sessions 1 Manual Loads 0 Difficulty Rogue Special Mode None Game No. 340 Rogue 336 Adventurer 0 Explorer 4 Win Type - Total 5 Types 4/0/0/1/0/0/0/0/0 Lore% 78 Gallery% 87 Achievement% 61 Wizard Run 0 Options --------- ASCII 1 Keyboard 1 Movement Numpad Keybinds 0 Fullscreen 2 Font 18/X11 Map View 76x50 Tactical HUD 1 Map Filters NONE Filters NONE Steam X RUN: d93ea81f-b7fa-4bdc-8716-6ae31b98f02a